bitfinex-derivatives/quotes_ETHF0:USTF0_20220106
["timestamp","ask_amount","ask_price","bid_price","bid_amount"]
[1641455561770,1.92870635,3449.1,3449.0,1.09096969]
[1641455562172,1.92870635,3449.1,3448.9,2.00879]
[1641455562371,0.229991,3449.0,3448.9,2.00879]
[1641455562574,1.28553574,3449.0,3448.9,2.085398]
[1641455562772,1.28553574,3449.0,3448.9,2.00879]
[1641455563173,1.28553574,3449.0,3448.9,2.075262]
[1641455563373,1.51552674,3449.0,3448.9,2.075262]
[1641455563573,1.28553574,3449.0,3448.9,2.075262]
[1641455563773,1.28553574,3449.0,3448.9,2.00879]
[1641455563973,0.132394,3449.3,3448.9,2.00879]
[1641455564474,0.132394,3449.4,3448.9,2.62252593]
[1641455565774,0.132394,3449.4,3449.1,0.97866341]
[1641455566076,0.229991,3449.3,3449.1,0.97866341]
[1641455566274,0.229991,3449.3,3449.1,1.05527141]
[1641455566474,0.132394,3449.4,3449.1,1.05527141]
[1641455567075,2.00479,3449.7,3449.1,1.05527141]
[1641455567376,2.00479,3449.7,3449.1,1.12574341]
[1641455567577,2.137184,3449.7,3449.1,1.12574341]
[1641455567777,1.5,3450.2,3449.2,12.41]
[1641455567981,2.00479,3450.4,3449.6,14.41479]
[1641455568177,0.132394,3450.3,3449.7,0.85750746]
[1641455568376,0.132394,3450.3,3449.8,12.41]
[1641455568579,2.00479,3450.4,3449.8,12.41]
[1641455568580,2.00479,3450.4,3449.9,0.070472]
[1641455568777,2.00479,3450.4,3450.0,1.4486644]
[1641455568977,2.00479,3450.4,3449.9,0.6049]
[1641455569176,2.00479,3450.8,3450.0,0.070472]
[1641455569378,2.00479,3450.8,3450.0,1.5191364]
[1641455569777,2.00479,3450.8,3450.0,13.9291364]
[1641455569978,0.132394,3450.7,3450.2,2.00479]
[1641455570179,1.5,3450.3,3450.2,2.00479]
[1641455570380,0.229991,3450.3,3450.2,2.00479]
[1641455570579,0.362385,3450.3,3450.2,2.00479]
[1641455570778,1.862385,3450.3,3450.2,2.00479]
[1641455571178,0.362385,3450.3,3450.2,2.00479]
[1641455571779,0.4646283,3450.3,3449.7,0.78703546]
[1641455571980,0.81463307,3450.3,3449.7,0.78703546]
[1641455572982,0.061922,3450.3,3449.7,0.78703546]
[1641455574083,2.066712,3450.3,3449.7,0.78703546]
[1641455574284,3.566712,3450.3,3449.7,0.78703546]
[1641455574485,1.5,3450.0,3449.7,0.78703546]
[1641455574686,0.061922,3449.9,3449.7,0.78703546]
[1641455575789,0.8489,3449.9,3449.7,0.78703546]
[1641455576486,0.8489,3449.9,3449.8,0.132394]
[1641455576688,0.6977,3449.9,3449.8,0.132394]
[1641455576887,0.6977,3449.9,3449.8,0.362385]
[1641455577486,0.6977,3449.9,3449.7,0.78703546]
[1641455577686,0.6977,3449.9,3449.8,0.229991]
[1641455577886,0.6977,3449.9,3449.7,0.78703546]
[1641455578289,1.5,3449.8,3449.7,0.78703546]
[1641455578589,1.818312,3450.3,3449.7,0.78703546]
[1641455578590,1.818312,3450.3,3449.7,2.46575383]
[1641455578988,1.818312,3450.3,3449.8,0.132394]
[1641455580091,3.43335376,3450.7,3449.8,0.132394]
[1641455580293,2.00479,3450.8,3449.8,0.132394]
[1641455580593,2.00479,3450.8,3450.1,12.41]
[1641455580791,2.00479,3450.8,3450.2,0.132394]
[1641455581791,2.00479,3450.8,3450.2,1.51367879]
[1641455582692,1.00479,3450.8,3450.2,1.51367879]
[1641455585295,1.00479,3450.8,3450.2,2.96225086]
[1641455585495,1.00479,3450.8,3450.2,1.51367879]
[1641455585698,0.81419,3450.8,3450.2,13.92367879]
[1641455585896,0.81419,3450.8,3450.2,1.51367879]
[1641455586498,0.81419,3450.8,3450.2,13.92367879]
[1641455586896,6.914,3453.7,3450.2,13.92367879]
[1641455587196,1.5,3452.3,3450.2,13.92367879]
[1641455587399,1.5,3452.3,3450.4,12.41]
[1641455587596,1.5,3452.3,3450.7,13.85838744]
[1641455587796,1.9267,3452.3,3450.8,0.6582]
[1641455587997,2.00479,3451.8,3451.0,2.00479]
[1641455588200,2.00479,3451.8,3451.1,0.132394]
[1641455588998,2.00479,3451.8,3451.0,2.00479]
[1641455589598,2.00479,3451.8,3451.1,0.132394]
[1641455589799,1.5,3451.6,3451.1,0.132394]
[1641455590199,2.3244,3451.6,3450.9,0.96756883]
[1641455590399,1.5,3451.0,3450.2,1.17807349]
[1641455590600,1.5,3450.5,3450.2,1.17807349]
[1641455590803,0.868,3450.5,3450.3,0.229991]
[1641455591002,0.868,3450.5,3449.5,13.38866341]
[1641455591402,0.868,3450.5,3450.0,0.132394]
[1641455592004,2.87279,3450.5,3450.0,0.132394]
[1641455592402,1.5,3450.4,3449.8,0.87951676]
[1641455593203,2.87279,3450.5,3449.9,1.132394]
[1641455597306,2.87279,3450.5,3450.0,1.4486665]
[1641455597507,2.87279,3450.5,3450.1,0.132394]
[1641455602010,1.87279,3450.5,3450.1,0.132394]
[1641455606020,1.5,3450.2,3449.3,31.7456]
[1641455606225,1.5,3449.7,3449.1,0.97866341]
[1641455606420,2.2438,3449.7,3449.1,0.97866341]
[1641455606622,2.2438,3449.7,3449.0,0.97866341]
[1641455606821,1.5,3449.4,3449.0,0.97866341]
[1641455607023,1.5,3449.6,3449.0,0.97866341]
[1641455607623,2.2438,3449.7,3449.0,0.97866341]
[1641455608027,2.2438,3449.7,3448.9,2.00479]
[1641455608426,0.7438,3449.7,3448.9,2.00479]
[1641455608624,1.5,3449.2,3448.9,2.00479]
[1641455609026,0.7438,3449.7,3448.9,2.00479]
[1641455610424,1.5,3449.1,3448.9,2.00479]
[1641455610827,1.5,3449.1,3449.0,0.61347596]
[1641455611025,1.5,3449.1,3449.0,0.41837596]
[1641455611527,1.5,3449.1,3448.8,1.95683852]
[1641455611726,1.5,3448.9,3448.6,2.00479]
[1641455611925,0.728,3448.9,3448.6,2.00479]
[1641455612725,1.5,3448.8,3448.6,2.00479]
[1641455612927,0.728,3448.9,3448.6,2.00479]
[1641455614227,4.78104055,3449.2,3448.6,2.00479]
[1641455615329,1.5,3449.0,3448.6,2.00479]
[1641455615527,1.5,3449.0,3448.5,1.96327188]
[1641455616128,2.00479,3448.7,3448.5,1.96327188]
[1641455616331,2.00479,3448.7,3448.6,0.229991]
[1641455616729,2.00479,3448.7,3448.5,1.96327188]
[1641455617129,2.00479,3448.7,3448.6,0.229991]
[1641455620837,2.00479,3448.7,3448.6,2.19320856]
[1641455621838,2.00479,3448.7,3448.6,0.229991]
[1641455627145,2.00479,3449.2,3448.6,12.639991]
[1641455627445,2.00479,3449.2,3448.7,0.132394]
[1641455627846,2.00479,3449.2,3448.7,0.99421034]
[1641455628447,2.00479,3449.2,3448.8,12.41]
[1641455628649,2.00479,3449.2,3448.9,0.132394]
[1641455628850,2.00479,3449.2,3449.0,0.229991]
[1641455629248,2.00479,3449.2,3449.1,0.132394]
[1641455629550,1.27625055,3450.5,3449.2,12.41]
[1641455629749,1.27625055,3450.5,3450.4,1.5]
[1641455629950,1.91267854,3451.0,3450.5,12.41]
[1641455630149,1.91267854,3451.0,3450.8,1.5]
[1641455630351,1.91267854,3451.0,3450.4,2.32550638]
[1641455630352,1.91267854,3451.0,3450.9,2.00479]
[1641455630550,1.91267854,3451.1,3450.9,2.137184]
[1641455630749,1.91267854,3451.1,3451.0,0.229991]
[1641455631752,1.91267854,3451.1,3451.0,1.09668615]
[1641455631951,2.41484988,3451.4,3451.0,1.09668615]
[1641455632154,2.41484988,3451.4,3451.1,0.132394]
[1641455632351,2.41484988,3451.4,3451.2,0.229991]
[1641455632852,2.00479,3451.7,3451.3,0.132394]
[1641455634855,2.00479,3451.7,3451.5,1.5]
[1641455635053,2.41484988,3453.1,3451.5,1.5]
[1641455635054,2.41484988,3453.1,3451.6,0.362385]
[1641455635253,2.41484988,3453.1,3451.6,3.31024398]
[1641455635454,2.41284988,3453.1,3452.2,1.44776256]
[1641455635655,2.41284988,3453.1,3452.2,0.6121]
[1641455636055,2.41284988,3453.1,3452.2,1.57739959]
[1641455636256,2.41284988,3453.1,3452.5,2.00479]
[1641455636458,2.00479,3453.3,3452.6,0.132394]
[1641455636857,0.11483154,3453.0,3452.6,0.132394]
[1641455638357,2.00479,3453.3,3452.9,2.94746289]
[1641455638559,2.00479,3453.6,3453.0,1.5798087]
[1641455638760,2.00479,3453.6,3453.0,0.132394]
[1641455639358,63.3433,3454.4,3453.0,0.132394]
[1641455639660,3.21781991,3454.8,3453.1,1.2366348]
[1641455639859,1.5,3454.5,3453.1,1.2366348]
[1641455640060,3.21781991,3454.2,3453.3,0.97590148]
[1641455640262,5.22260991,3454.2,3453.4,2.00479]
[1641455640458,5.22260991,3454.2,3453.5,0.132394]
[1641455641762,2.00479,3454.2,3453.6,0.97590148]
[1641455641960,2.00479,3454.2,3453.7,0.93580721]
[1641455642362,1.5,3453.8,3453.7,0.93580721]
[1641455642562,0.7577,3453.8,3453.6,0.97590148]
[1641455642862,0.7577,3453.8,3453.6,1.92038754]
[1641455643061,0.7577,3453.8,3453.7,0.229991]
[1641455643461,2.00479,3454.2,3453.6,2.05278154]
[1641455643861,2.00479,3454.2,3453.7,1.26352439]
[1641455644061,3.50479,3454.2,3453.7,1.26352439]
[1641455644464,2.00479,3453.8,3453.7,1.26352439]
[1641455645864,1.00479,3453.8,3453.4,1.30747515]
[1641455648065,1.5,3453.5,3453.4,7.515e-05]
[1641455648263,1.5,3453.5,3453.0,1.0]
[1641455648469,5.50958,3453.1,3452.3,7.34828978]
[1641455648766,1.5,3452.4,3452.3,7.34828978]
[1641455648966,0.6227,3452.4,3452.3,7.34828978]
[1641455650267,0.6227,3452.4,3452.3,0.229991]
[1641455650470,4.00958,3452.4,3452.0,0.132394]
[1641455650873,3.00958,3452.4,3452.0,0.132394]
[1641455651473,3.00958,3452.4,3451.7,2.39186346]
[1641455651770,3.70158,3452.4,3451.7,2.39186346]
[1641455652173,3.70158,3452.4,3451.7,2.52425746]
[1641455652574,3.70158,3452.4,3451.7,2.39186346]
[1641455652971,1.5,3451.8,3451.7,1.0]
[1641455653172,1.5,3452.3,3451.7,1.0]
[1641455653873,3.70158,3452.4,3451.7,1.0]
[1641455654072,3.00958,3452.4,3451.8,0.132394]
[1641455654471,3.00958,3452.4,3451.7,1.0]
[1641455656273,3.00958,3452.4,3451.8,0.132394]
[1641455657674,1.5,3452.3,3451.8,0.132394]
[1641455658275,3.00958,3452.4,3451.7,1.0]
[1641455658276,1.5,3451.9,3451.7,1.0]
[1641455658475,2.3844,3451.9,3451.7,1.0]
[1641455659076,0.8844,3451.9,3451.7,1.229991]
[1641455659477,1.5,3452.3,3451.7,1.229991]
[1641455659677,3.00958,3452.4,3451.7,1.229991]
[1641455659880,3.00958,3452.4,3451.8,0.132394]
[1641455661782,1.5,3452.2,3451.8,0.132394]
[1641455661979,2.00479,3452.4,3451.8,0.132394]
[1641455662179,1.00958,3452.4,3451.8,0.132394]
[1641455662581,1.00958,3452.4,3451.8,2.137184]
[1641455663681,2.50958,3452.4,3451.8,2.137184]
[1641455663980,1.00958,3452.4,3451.8,2.137184]
[1641455664180,2.50958,3452.4,3451.8,2.137184]
[1641455664781,1.5,3452.1,3451.8,2.137184]
[1641455664982,1.00958,3452.4,3451.8,2.137184]
[1641455667082,2.00479,3452.9,3451.8,3.004984]
[1641455667285,32.7351,3453.1,3451.8,3.004984]
[1641455668483,1.5,3453.0,3452.7,2.00479]
[1641455668683,2.00479,3453.5,3452.7,2.00479]
[1641455668884,1.5,3453.4,3452.7,2.00479]
[1641455669083,2.00479,3453.5,3452.7,2.00479]
[1641455669282,1.5,3453.4,3452.7,2.00479]
[1641455669485,2.00479,3453.5,3452.7,2.00479]
[1641455669783,1.5,3453.4,3452.7,2.00479]
[1641455670184,2.00479,3453.5,3452.7,2.00479]
[1641455670384,1.5,3453.3,3452.8,0.132394]
[1641455670784,1.5,3453.1,3452.7,2.00479]
[1641455670984,2.00479,3453.5,3452.7,2.00479]
[1641455671185,2.00479,3453.5,3452.8,0.132394]
[1641455671385,2.00479,3453.8,3452.8,0.132394]
[1641455671586,1.5,3453.7,3452.8,0.132394]
[1641455673086,2.00479,3453.8,3452.8,0.132394]
[1641455673987,1.5,3453.5,3452.8,0.132394]
[1641455674189,2.00479,3453.8,3452.8,0.132394]
[1641455676592,2.00479,3453.8,3452.8,0.858394]
[1641455677393,3.50479,3453.8,3452.8,0.858394]
[1641455677594,1.5,3453.6,3452.8,0.132394]
[1641455677893,2.2162,3453.6,3452.8,0.132394]
[1641455678294,1.5,3453.3,3452.7,4.00958]
[1641455678894,1.5,3453.0,3452.7,4.00958]
[1641455679094,1.5,3453.0,3452.0,0.9658551]
[1641455679293,1.5,3452.8,3452.0,0.9658551]
[1641455679494,0.8783,3452.8,3452.0,0.9658551]
[1641455679895,0.8783,3452.8,3452.1,0.132394]
[1641455680495,2.3783,3452.8,3452.2,2.00479]
[1641455680696,2.00479,3453.0,3452.3,0.132394]
[1641455682895,31.2865,3453.7,3452.3,0.132394]
[1641455683296,0.26837057,3453.6,3452.7,1.28779467]
[1641455683496,2.17317594,3453.6,3452.7,1.28779467]
[1641455684496,4.42763555,3453.8,3452.7,1.28779467]
[1641455684497,2.00479,3453.8,3453.4,0.97975392]
[1641455685397,2.00479,3453.8,3453.3,0.97975392]
[1641455685796,2.00479,3453.8,3453.3,5.392e-05]
[1641455686096,2.00479,3453.8,3453.3,0.13244792]
[1641455686397,2.00479,3453.8,3453.3,0.132394]
[1641455686798,2.00479,3453.8,3453.4,0.61287325]
[1641455687598,2.00479,3453.8,3453.4,0.8201]
[1641455687801,2.00479,3453.8,3453.5,0.132394]
[1641455687998,1.90480537,3453.9,3453.6,0.229991]
[1641455688197,1.90480537,3453.9,3453.7,0.132394]
[1641455688601,1.90480537,3453.9,3453.8,2.00479]
[1641455688798,1.90480537,3453.9,3453.8,2.234781]
[1641455689499,2.17317594,3454.4,3453.8,2.234781]
[1641455689700,3.67317594,3454.4,3453.8,2.234781]
[1641455690304,2.17317594,3454.4,3453.9,0.132394]
[1641455690903,3.90959537,3454.6,3453.9,0.7451278]
[1641455691503,1.5,3454.2,3453.9,0.6127338]
[1641455691704,3.90959537,3454.6,3453.9,0.6127338]
[1641455691901,3.90959537,3454.6,3454.0,0.6127338]
[1641455692103,3.90959537,3454.6,3454.4,1.0]
[1641455692504,3.90959537,3454.6,3454.4,0.0001]
[1641455692907,2.00479,3454.6,3454.4,0.4706]
[1641455693105,2.00479,3454.6,3453.8,2.00479]
[1641455693106,2.00479,3454.6,3453.9,0.132394]
[1641455694306,1.93746649,3454.3,3453.9,0.132394]
[1641455694709,4.42763555,3454.6,3453.9,0.132394]
[1641455694710,2.00479,3454.6,3453.9,0.132394]
[1641455695908,1.00479,3454.6,3453.9,0.132394]
[1641455696109,1.93789818,3454.4,3453.9,0.132394]
[1641455697109,1.00479,3454.6,3453.9,0.132394]
[1641455698012,2.00479,3454.9,3453.9,0.132394]
[1641455698412,1.5,3454.7,3453.9,0.132394]
[1641455698611,2.00479,3454.9,3454.2,2.00479]
[1641455698810,2.00479,3454.9,3454.2,2.829984]
[1641455699910,2.00479,3454.9,3454.2,2.69759]
[1641455700613,2.00479,3454.9,3454.2,2.829984]
[1641455701013,2.00479,3454.9,3454.6,1.0]
[1641455701813,2.00479,3454.9,3454.2,2.00479]
[1641455704017,3.50479,3454.9,3454.2,2.00479]
[1641455704217,2.00479,3454.9,3454.2,2.00479]
[1641455704421,2.00479,3454.9,3454.2,2.137184]
[1641455705417,2.00479,3454.9,3454.2,2.00479]
[1641455706018,1.47529,3454.9,3454.2,2.00479]
[1641455708722,1.5,3454.6,3454.2,2.00479]
[1641455708922,1.47529,3454.9,3454.2,2.00479]
[1641455710826,1.47529,3454.9,3454.2,2.137184]
[1641455713430,1.5,3454.7,3454.2,2.137184]
[1641455713631,1.5,3454.7,3454.2,2.00479]
[1641455713835,1.5,3454.3,3454.2,2.00479]
[1641455714031,0.6883,3454.3,3454.2,2.00479]
[1641455714432,2.13598291,3454.3,3454.2,2.00479]
[1641455715735,0.6883,3454.3,3454.2,2.00479]
[1641455715934,1.44751946,3454.7,3454.2,2.00479]
[1641455716133,1.5,3454.8,3454.2,2.00479]
[1641455717036,1.47529,3454.9,3454.2,2.137184]
[1641455717436,1.93789818,3455.2,3454.2,2.137184]
[1641455718136,1.93789818,3455.2,3454.3,1.5]
[1641455718339,0.4235,3455.4,3454.3,13.91]
[1641455718737,34.03219818,3455.8,3455.2,2.00479]
[1641455718938,1.93789818,3455.8,3455.2,2.954784]
[1641455719140,1.93789818,3455.8,3455.2,3.7638715]
[1641455719340,2.37239818,3455.8,3455.2,3.7638715]
[1641455719539,2.37239818,3455.8,3455.2,3.6314775]
[1641455719939,0.4345,3455.8,3455.3,0.132394]
[1641455721641,2.00479,3456.0,3455.3,0.132394]
[1641455725248,1.93789818,3455.5,3455.3,0.132394]
[1641455725448,1.93789818,3455.5,3455.4,0.229991]
[1641455726151,2.42237273,3455.7,3455.4,0.229991]
[1641455726348,2.42237273,3455.7,3455.3,0.132394]
[1641455726749,2.42237273,3455.7,3455.6,2.00479]
[1641455726949,2.42237273,3455.7,3455.6,2.367175]
[1641455729254,2.42237273,3455.8,3455.6,2.367175]
[1641455730153,2.42237273,3455.8,3455.6,2.00479]
[1641455730355,2.42237273,3455.8,3455.6,2.234781]
[1641455730958,2.42237273,3455.8,3455.6,2.00479]
[1641455731657,2.42237273,3455.9,3455.7,0.229991]
[1641455732258,2.42237273,3455.9,3455.7,0.362385]
[1641455732458,0.4356,3456.2,3455.7,0.362385]
[1641455732657,0.4356,3456.2,3455.7,0.132394]
[1641455733057,0.4356,3456.2,3455.6,2.00479]
[1641455733664,1.9356,3456.2,3455.6,2.00479]
[1641455734060,1.5,3455.7,3455.6,2.00479]
[1641455734260,3.83367699,3455.7,3454.3,0.97445548]
[1641455734463,1.5,3455.1,3454.3,0.97445548]
[1641455734660,1.5,3454.8,3454.3,0.97445548]
[1641455734862,2.00479,3454.5,3454.3,0.97445548]
[1641455735461,1.44767872,3454.4,3454.2,0.97445548]
[1641455735862,2.00479,3454.5,3454.2,0.97445548]
[1641455736462,3.45239956,3454.5,3454.2,0.97445548]
[1641455736663,3.45239956,3454.5,3454.0,1.30618868]
[1641455736863,3.45239956,3454.5,3453.7,2.00479]
[1641455737063,2.00479,3454.5,3453.7,2.00479]
[1641455737465,2.00479,3454.5,3453.8,0.132394]
[1641455742367,2.00479,3454.5,3453.7,2.00479]
[1641455742565,2.00479,3454.5,3453.8,0.132394]
[1641455744166,2.00479,3454.5,3453.7,2.00479]
[1641455744369,2.83099,3454.5,3453.7,2.00479]
[1641455745571,2.83099,3454.5,3453.8,0.132394]
[1641455745771,2.00479,3454.5,3453.8,0.132394]
[1641455746572,2.00479,3454.5,3453.7,2.00479]
[1641455748373,0.4397,3455.0,3453.8,1.632394]
[1641455748574,0.4397,3455.0,3453.8,0.766694]
[1641455748974,1.9397,3455.0,3454.7,2.00479]
[1641455749172,1.5,3454.8,3454.4,2.00479]
[1641455749472,0.4397,3455.0,3453.5,1.18060237]
[1641455749473,1.5,3454.6,3453.5,1.18060237]
[1641455749672,1.5,3454.3,3453.5,1.18060237]
[1641455749875,0.8194,3454.3,3453.5,1.18060237]
[1641455750073,1.5,3453.6,3453.4,0.97445548]
[1641455750276,2.2795,3453.6,3453.4,5.548e-05]
[1641455750473,1.44815042,3453.5,3453.2,1.30618868]
[1641455750673,1.5,3453.3,3452.9,0.30253585]
[1641455750874,1.5,3453.0,3452.7,1.37318302]
[1641455751076,1.5,3453.0,3452.7,2.67049971]
[1641455751373,1.5,3453.0,3452.7,1.29731669]
[1641455751575,1.5,3452.8,3452.7,1.29731669]
[1641455751775,3.61645178,3452.8,3452.7,1.669e-05]
[1641455751976,3.61645178,3452.8,3452.4,1.62164586]
[1641455752175,2.11645178,3452.8,3452.3,2.00479]
[1641455752575,0.6681,3452.8,3452.3,2.00479]
[1641455753478,0.6681,3452.8,3451.9,2.00479]
[1641455753479,2.94844198,3452.5,3451.9,2.00479]
[1641455753778,1.44865181,3452.0,3451.1,0.81714813]
[1641455753979,1.5,3451.6,3451.1,0.81714813]
[1641455754182,1.5,3451.2,3451.1,0.81714813]
[1641455754378,3.74561365,3451.2,3451.1,0.81714813]
[1641455754779,0.00195187,3451.1,3449.4,63.9832]
[1641455754980,2.00479,3450.6,3449.8,6.49481358]
[1641455755179,2.00479,3450.6,3450.4,0.229991]
[1641455755381,2.00479,3451.0,3450.4,1.729991]
[1641455755582,1.45100042,3451.1,3450.4,0.229991]
[1641455755780,1.45100042,3451.1,3450.4,0.362385]
[1641455755980,0.00195187,3451.1,3450.4,1.051085]
[1641455756883,0.00195187,3451.1,3450.9,2.00479]
[1641455757082,0.00195187,3451.1,3451.0,0.229991]
[1641455758582,0.00195187,3451.1,3450.9,2.00479]
[1641455758782,0.00195187,3451.1,3450.9,2.234781]
[1641455760383,0.00195187,3451.1,3450.9,2.00479]
[1641455761383,0.00195187,3451.1,3451.0,0.229991]
[1641455761583,0.00195187,3451.1,3451.0,0.958091]
[1641455762386,0.00195187,3451.1,3451.0,0.7281]
[1641455762586,0.00195187,3451.1,3451.0,0.958091]
[1641455762785,0.00195187,3451.1,3451.0,1.090485]
[1641455763987,0.00195187,3451.1,3451.0,2.590485]
[1641455764389,0.00195187,3451.1,3451.0,4.03867946]
[1641455764790,0.00195187,3451.1,3451.0,1.090485]
[1641455768188,0.00195187,3451.1,3450.9,2.00479]
[1641455768394,0.00195187,3451.1,3450.9,2.234781]
[1641455768588,0.00195187,3451.1,3450.9,2.00479]
[1641455769388,0.00195187,3451.1,3451.0,0.229991]
[1641455769988,0.00195187,3451.1,3450.9,2.00479]
[1641455770190,0.00195187,3451.1,3451.0,0.229991]
[1641455770391,0.00195187,3451.1,3450.9,2.00479]
[1641455771089,0.00195187,3451.1,3450.9,2.234781]
[1641455773090,0.00195187,3451.1,3450.9,2.00479]
[1641455773696,0.00195187,3451.1,3451.0,0.229991]
[1641455773892,2.00479,3452.3,3451.0,0.229991]
[1641455774797,2.00479,3452.3,3451.0,2.510091]
[1641455774996,2.00479,3452.3,3451.5,2.00479]
[1641455776598,1.44858886,3452.2,3451.5,2.00479]
[1641455777598,2.00479,3452.3,3451.5,2.00479]
[1641455778697,2.00479,3452.3,3451.6,0.132394]
[1641455778899,33.55529,3453.0,3451.7,0.86539102]
[1641455779098,2.00479,3453.0,3452.4,2.00479]
[1641455779298,2.00479,3453.0,3452.5,0.132394]
[1641455779699,2.00479,3453.0,3452.4,2.63389]
[1641455780803,2.00479,3453.0,3452.5,1.40348662]
[1641455781200,2.00479,3453.0,3452.5,1.53588062]
[1641455783000,3.45280412,3453.5,3452.9,2.00479]
[1641455783200,2.00479,3453.5,3452.9,2.00479]
[1641455785504,1.44812316,3453.3,3452.9,2.00479]
[1641455786904,1.44812316,3453.3,3452.4,2.00479]
[1641455786905,1.5,3453.0,3452.4,2.00479]
[1641455787107,1.5,3452.5,3451.4,32.585]
[1641455787304,2.00479,3452.3,3451.5,2.00479]
[1641455787504,2.77559,3452.3,3451.5,2.00479]
[1641455787706,4.22413269,3452.3,3451.5,2.00479]
[1641455788008,2.77559,3452.3,3451.5,2.00479]
[1641455788208,1.44860984,3452.1,3451.5,2.00479]
[1641455788409,2.94860984,3452.1,3451.5,2.00479]
[1641455789208,2.77559,3452.3,3451.5,2.00479]
[1641455789507,1.5,3452.1,3451.5,2.00479]
[1641455789708,1.5,3451.9,3451.5,2.00479]
[1641455789910,1.44881342,3451.6,3451.5,2.00479]
[1641455790107,1.44864971,3452.0,3451.5,2.00479]
[1641455791309,2.94880293,3451.6,3451.5,2.00479]
[1641455791511,1.44880293,3451.6,3451.2,2.00479]
[1641455792309,2.94880293,3451.6,3451.2,2.00479]
[1641455792712,3.50479,3452.3,3451.2,2.00479]
[1641455792913,1.44893308,3451.3,3451.2,2.00479]
[1641455794814,2.00479,3451.7,3451.2,2.00479]
[1641455795013,1.44881132,3451.6,3451.2,2.88899]
[1641455795912,2.00479,3451.7,3451.2,2.88899]
[1641455796314,1.44881132,3451.6,3451.2,2.88899]
[1641455798515,2.00479,3451.7,3451.2,2.88899]
[1641455799317,3.50479,3451.7,3451.2,2.88899]
[1641455799919,1.5,3451.6,3451.2,2.88899]
[1641455800120,3.50479,3451.7,3451.2,2.88899]
[1641455800322,2.00479,3451.7,3451.2,2.88899]
[1641455800522,1.44890369,3451.4,3451.2,2.88899]
[1641455801321,2.44759,3451.7,3451.2,2.88899]
[1641455801523,1.44885331,3451.5,3451.2,2.88899]
[1641455804327,2.44759,3451.7,3451.2,2.88899]
[1641455805628,3.94759,3451.7,3451.2,2.88899]
[1641455805830,1.44889529,3451.4,3451.2,2.88899]
[1641455806034,2.44759,3451.7,3451.2,2.88899]
[1641455809032,3.94759,3451.7,3451.2,2.88899]
[1641455810032,2.44759,3451.7,3451.2,2.88899]
[1641455810937,2.44759,3451.7,3451.2,0.8842]
[1641455811136,2.44759,3451.7,3450.7,1.25756598]
[1641455812635,3.89638033,3451.7,3450.7,1.25756598]
[1641455812834,2.44759,3451.7,3450.7,1.25756598]
[1641455814037,1.4488617,3451.5,3450.7,1.25756598]
[1641455815238,2.00479,3451.7,3450.8,0.132394]
[1641455815438,2.00479,3451.7,3450.8,0.839794]
[1641455818841,1.44881972,3451.6,3450.8,0.839794]
[1641455819038,2.00479,3451.7,3450.8,0.839794]
[1641455819538,3.45357613,3451.7,3450.8,0.839794]
[1641455822142,2.00479,3451.7,3450.8,0.839794]
[1641455829547,2.00479,3451.7,3450.8,0.7074]
[1641455829747,2.00479,3451.7,3450.7,1.25756598]
[1641455830548,2.73379,3451.7,3450.7,1.25756598]
[1641455834048,2.73379,3451.7,3450.5,3.29647489]
[1641455834649,1.26714619,3452.3,3451.4,1.5]
[1641455834850,1.26714619,3452.3,3451.4,0.6234]
[1641455835051,31.2265301,3454.3,3451.4,0.6234]
[1641455835052,1.26714619,3452.4,3451.4,0.6234]
[1641455835452,2.00479,3452.3,3451.5,2.00479]
[1641455835651,2.00479,3452.3,3451.6,0.132394]
[1641455836659,1.26714619,3452.4,3451.6,0.132394]
[1641455836861,2.00479,3452.7,3451.6,0.132394]
[1641455837561,0.10216929,3452.9,3452.2,1.5]
[1641455837761,0.10216929,3452.9,3452.3,0.132394]
[1641455838162,0.10216929,3452.9,3452.3,1.132394]
[1641455838362,0.10216929,3452.9,3452.3,2.632394]
[1641455838564,1.26714619,3453.1,3452.4,0.86312304]
[1641455838763,1.26714619,3453.1,3452.5,0.132394]
[1641455838964,31.526,3453.8,3452.9,1.5]
[1641455839162,1.28438747,3453.5,3452.9,2.2542]
[1641455839364,1.28438747,3453.5,3453.0,0.132394]
[1641455839563,1.28438747,3453.5,3453.4,2.00479]
[1641455839764,1.28438747,3453.5,3453.4,2.367175]
[1641455839963,1.93517794,3454.0,3453.4,2.367175]
[1641455840164,1.93517794,3454.0,3453.4,2.00479]
[1641455840568,2.00479,3454.2,3453.4,2.00479]
[1641455840765,2.00479,3454.2,3453.5,1.02581275]
[1641455841765,2.00479,3454.2,3453.6,0.132394]
[1641455841965,1.93517794,3454.0,3453.6,1.008294]
[1641455842165,0.93517794,3454.0,3453.6,1.008294]
[1641455842967,0.1021303,3453.9,3453.6,1.97158375]
[1641455843171,0.03730824,3454.0,3453.6,1.97158375]
[1641455844873,2.00479,3454.2,3453.6,1.97158375]
[1641455845272,1.44777723,3454.1,3453.6,1.83918975]
[1641455845872,1.44777723,3454.1,3453.7,0.132394]
[1641455846072,4.00958,3454.2,3453.7,0.132394]
[1641455846373,1.44776675,3454.1,3453.7,0.132394]
[1641455848373,1.44776675,3454.1,3454.0,1.0]
[1641455850977,4.00958,3454.2,3454.0,1.5323]
[1641455851879,1.44775417,3454.1,3454.0,1.5323]
[1641455852077,1.44775417,3454.1,3454.0,1.0]
[1641455853279,4.00958,3454.2,3454.0,1.0]
[1641455854579,4.00958,3454.2,3454.0,1.229991]
[1641455854780,4.00958,3454.2,3454.0,1.0]
[1641455858184,3.00958,3454.2,3454.0,1.0]
[1641455859487,3.00958,3454.2,3454.0,1.229991]
[1641455860289,3.00958,3454.2,3454.0,1.0]